{"text_format":"3","workbook":"xlsx","n_sheets":4,"sheets":["Electrical BoQ","Instrumentation BoQ","Mechanical & Piping BOQ","Civil & Structural BoQ"],"not_rendered":{"images":3,"defined_names":1},"read":"whole","date_system":"1900"}

{"sheet":"Electrical BoQ","index":0,"n_rows":76,"n_cols":7,"rows_kept":76,"merged":[[0,0,0,6],[1,0,2,3],[20,12,20,13]]}
[]
["CSIR BIDF - Estimated Electrical Bill of Quantities",{"$nulls":3},"Project",null,"CSIR BIDF"]
[{"$nulls":4},"Doc Nr",null,"21050-CSI-EC&I-RPT-002"]
["Date","Done By:",null,null,"Approved By",null,"Details"]
["17/09/2021","K Freese",null,null,"D Roode",null,"Issued for Internal Review"]
[null,"G Stirling"]
[]
["BILL","DESCRIPTION","UNIT","QTY","RATE","AMOUNT (EXCL VAT)","AMOUNT (INCL VAT)"]
[]
[]
["E1 ","Distribution Board - (380V, 50Hz,1500A)"]
["E1.1","DB-01","No.",{"v":1,"d":"1.00"}]
[]
[]
["E.2","LV Power Distribution Cable "]
["E2.1","EPCM Panel (DB-01) - 120mm2 4C SWA","m",{"v":10,"d":"10.00"}]
["E2.2","Parr Stirred Digester (19L) - 25mm2 3C SWA","m",{"v":55,"d":"55.00"}]
["E2.3","Low Consistency Refiner System - 25mm2 4C SWA","m",{"v":18,"d":"18.00"}]
["E2.4","Screen - 25mm2 3C SWA","m",{"v":22,"d":"22.00"}]
["E2.5","Bench-scale Biochar Unit - 25mm2 3C SWA","m",{"v":30,"d":"30.00"}]
["E2.6","Laboratory Woodchipper - 25mm2 3C SWA","m",{"v":26,"d":"26.00"}]
["E2.7","RDH Digester - 25mm2 4C SWA","m",{"v":42,"d":"42.00"}]
["E2.8","Flow-Through Digester - 25mm2 3C SWA","m",{"v":63,"d":"63.00"}]
["E2.9","Hemp Cleaner Digester - 25mm2 3C SWA","m",{"v":18,"d":"18.00"}]
["E2.10","Boiler - 25mm2 4C SWA","m",{"v":63,"d":"63.00"}]
["E2.11","Wastepaper Recycling Pilot - 25mm2 3C SWA","m",{"v":5,"d":"5.00"}]
["E2.12","Pilot-Scale Biochar Unit - 25mm2 4C SWA","m",{"v":33,"d":"33.00"}]
["E2.13","Valley Beater - 25mm2 3C SWA","m",{"v":22,"d":"22.00"}]
["E2.14","Compressor - 25mm2 4C SWA","m",{"v":63,"d":"63.00"}]
["E2.15","Oxidizer - 25mm2 4C SWA","m",{"v":63,"d":"63.00"}]
["E2.16","Lighting Circuitry - 4mm2 3C SWA","m",{"v":800,"d":"800.00"}]
[]
[]
["E3","Earthing Cable - ICW"]
["E3.1","2000kVA, 5kV-480/277V Supply Cable - 70mm2 PVC","m",{"v":130,"d":"130.00"}]
[]
[]
["E4 ","LV Cable Terminations"]
["E4.1","EPCM Panel (DB-01) - 120mm2 4C SWA","No.",{"v":2,"d":"2.00"}]
["E4.2","Parr Stirred Digester (19L) - 25mm2 3C SWA","No.",{"v":2,"d":"2.00"}]
["E4.3","Low Consistency Refiner System - 25mm2 4C SWA","No.",{"v":2,"d":"2.00"}]
["E4.4","Screen - 25mm2 3C SWA","No.",{"v":2,"d":"2.00"}]
["E4.5","Bench-scale Biochar Unit - 25mm2 3C SWA","No.",{"v":2,"d":"2.00"}]
["E4.6","Laboratory Woodchipper - 25mm2 3C SWA","No.",{"v":2,"d":"2.00"}]
["E4.7","RDH Digester - 25mm2 4C SWA","No.",{"v":2,"d":"2.00"}]
["E4.8","Flow-Through Digester - 25mm2 3C SWA","No.",{"v":2,"d":"2.00"}]
["E4.9","Hemp Cleaner Digester - 25mm2 3C SWA","No.",{"v":2,"d":"2.00"}]
["E4.10","Boiler - 25mm2 4C SWA","No.",{"v":2,"d":"2.00"}]
["E4.11","Wastepaper Recycling Pilot - 25mm2 3C SWA","No.",{"v":2,"d":"2.00"}]
["E4.12","Pilot-Scale Biochar Unit - 25mm2 4C SWA","No.",{"v":2,"d":"2.00"}]
["E4.13","Valley Beater - 25mm2 3C SWA","No.",{"v":2,"d":"2.00"}]
["E4.14","Compressor - 25mm2 4C SWA","No.",{"v":2,"d":"2.00"}]
["E4.15","Oxidizer - 25mm2 4C SWA","No.",{"v":2,"d":"2.00"}]
["E4.16","Lighting Circuitry - 4mm2 3C SWA","No.",{"v":48,"d":"48.00"}]
[]
[]
["E5","Cable Trays and Racking"]
["E5.1","Cable Trays and Racking","m",{"v":100,"d":"100.00"}]
["E5.2","Cable Trays and Racking accessories","Lot",{"v":1,"d":"1.00"}]
[]
[]
["E6","Earthing and Lightning Protection"]
["E6.1","Earthing and Lightning Protection Material","Lot",{"v":1,"d":"1.00"}]
["E6.2","Earthing and Lightning Protection Testing and Reports","Lot",{"v":1,"d":"1.00"}]
[]
[]
["E7","Lighting and Small Power"]
["E7.1","Site Lighting (Suitable for use in Zone 2)","No.",{"v":24,"d":"24.00"}]
[]
["E8.1","Installation & Commissioning (est)"]
[null,"TOTAL"]
[]
[null,"Sub-Total"]
[null,"VAT 15%"]
[]
[null,"TOTAL"]

{"sheet":"Instrumentation BoQ","index":1,"n_rows":39,"n_cols":7,"rows_kept":39,"merged":[[0,0,0,6],[1,0,2,3]]}
[]
["CSIR BIDF - Estimated Instrumentation Bill of Quantities",{"$nulls":3},"Project",null,"CSIR BIDF"]
[{"$nulls":4},"Doc Nr",null,"21050-CSI-EC&I-RPT-002"]
["Date","Done By:",null,null,"Approved By",null,"Details"]
["17/09/2021","K Freese",null,null,"D Roode",null,"Issued for Internal Review"]
[null,"G Stirling"]
[]
["BILL","DESCRIPTION","UNIT","QTY","RATE","AMOUNT (EXCL VAT)","AMOUNT (INCL VAT)"]
[]
[null,"Equipment Installation, Inspection and Calibration"]
[]
["I1 ","Flow Meters"]
["I1.1","Volumetric Piston Rotary Water Meters ","Lot",{"v":1,"d":"1.00"}]
[]
["I2 ","Temperature Instrumentation"]
["I2.1","Temperature Gauges","Lot",{"v":1,"d":"1.00"}]
[]
["I3 ","Pressure Instrumentation"]
["I3.1","Pressure Gauges","Lot",{"v":1,"d":"1.00"}]
[]
["I4.1","Installation & Commissioning (est)"]
[]
[null,"New Equipment"]
[]
["I5 ","Flow Meters"]
["I5.1","Volumetric Piston Rotary Water Meters","No",{"v":2,"d":"2.00"}]
[]
["I6 ","Temperature Instrumentation"]
["I6.1","Temperature Gauges","No",{"v":2,"d":"2.00"}]
[]
["I7 ","Pressure Instrumentation"]
["I7.1","Pressure Gauges","No",{"v":11,"d":"11.00"}]
[]
[]
[]
[null,"Sub-Total"]
[null,"VAT 15%"]
[]
[null,"TOTAL"]

{"sheet":"Mechanical & Piping BOQ","index":2,"n_rows":138,"n_cols":7,"rows_kept":138,"merged":[[0,0,0,6]]}
[]
["CSIR BIDF - Estimated Mechanical & Piping Bill of Quantities",{"$nulls":3},"Project",null,"CSIR BIDF"]
[{"$nulls":4},"Doc Nr",null,"21050-CSI-EC&I-RPT-002"]
["Date","Done By:",null,null,"Approved By",null,"Details"]
["17/09/2021","M Joubert",null,null,"D Roode",null,"Issued for tender purposes"]
[null,"G Stirling"]
[]
["BILL","DESCRIPTION","UNIT","QTY","RATE","AMOUNT (EXCL VAT)","AMOUNT (INCL VAT)"]
[null,"Mechanical Equipment"]
[]
["M1 ","Electric Steam Boiler (KSM Boiler and Plant  Solutions)\t"]
["M1.1","300kg/h Marshal Fowler ES 20 Steam Generator","No.",{"v":1,"d":"1.00"}]
[]
[null,"Piping, Valves and Connections"]
[]
["M2 ","Valves"]
["M2.1","Steam Line 1/2\" Socket Weld Stop Valves (ASME B16.34 / API 608 or similar)","qty",{"v":8,"d":"8.00"}]
["M2.2","Steam Line 1 1/2\" Socket Weld Stop Valves (ASME B16.34 / API 608 or similar)","qty",{"v":1,"d":"1.00"}]
["M2.3","Nitrogen Line 3/8\" BSP Ball Valves (EN 331)","qty",{"v":3,"d":"3.00"}]
["M2.4","Compressed Air Line 1/2\" BSP Ball Valves (EN 331)","qty",{"v":5,"d":"5.00"}]
["M2.5","Municipal Water Line 15mm BSP Ball Valves (EN 331)","qty",{"v":12,"d":"12.00"}]
["M2.6","Hot Geyser water Line 15mm BSP Ball Valves (EN 331)","qty",{"v":4,"d":"4.00"}]
["M2.7","Hot Geyser water Line 22mm BSP Ball Valves (EN 331)","qty",{"v":1,"d":"1.00"}]
["M2.8","Steam Line 1 1/2\" Socket Weld Plug Valves (ASME B16.34 / API 6D)","qty",{"v":1,"d":"1.00"}]
["M2.9","Steam Line 3/8\" Socket Weld Needle Valve (ASME 16.34 / API 594)","qty",{"v":1,"d":"1.00"}]
[]
["M3","Piping and Connections"]
[null,"Steam lines"]
["M3.1","ASME 31.3 CS A106 Gr B SCH 40     1 1/2\" ","m",{"v":36,"d":"36.00"}]
["M3.2","ASME 31.3 CS A106 Gr B SCH 40\t    1/2\"\t","m",{"v":12,"d":"12.00"}]
["M3.3","ASME 31.3 CS A106 Gr B SCH 40\t    3/8\"\t","m",{"v":12,"d":"12.00"}]
[]
["M4","Steam Fittings"]
["M4.1","EN1092 PN25 RF Blind Flange (#5)  IMPERIAL  2\" RF BLIND FLANGE     2\"","qty",{"v":1,"d":"1.00"}]
["M4.2","End Caps  A106 Gr B CS SCH40 Pipe Connection SW     1 1/2\" ","qty",{"v":4,"d":"4.00"}]
["M4.3","End Caps  A106 Gr B CS SCH40 Pipe Connection SW     3/8\"","qty",{"v":1,"d":"1.00"}]
["M4.4","Reducing Tee-Piece  A106 Gr B CS SCH40 SW x A106 Gr B CS SCH40 SW     2x1.5\"  Pipe by 1x3/8\"  Pipe","qty",{"v":1,"d":"1.00"}]
["M4.5","Reducing Tee-Piece  A106 Gr B CS SCH40 SWx A106 Gr B CS SCH40 SW     2x1.5\"  Pipe by 1x1/2\"  Pipe","qty",{"v":2,"d":"2.00"}]
["M4.6","90 degree Angles  A106 Gr B CS SCH40 SW x A106 Gr B CS SCH40 SW     1.5\"  Pipe x 1.5\"  Pipe","qty",{"v":4,"d":"4.00"}]
["M4.7","90 degree Angles  A106 Gr B CS SCH40 SW x A106 Gr B CS SCH40 SW     0.5\" Pipe x 0.5\" Pipe","qty",{"v":12,"d":"12.00"}]
["M4.8","EN1092 PN25 RF Slip On Flange (#1) IMPERIAL  1.5\" RF SLIP ON FLANGE     1.5\"","qty",{"v":2,"d":"2.00"}]
["M4.9","EN1092 NP25 RF Blind Flange (#5) IMPERIAL  1.5\" RF BLIND FLANGE     1.5\"","qty",{"v":2,"d":"2.00"}]
["M4.10","Tee-Piece  A106 Gr B CS SCH40 SWx A106 Gr B CS SCH40 SW     1.5\"","qty",{"v":5,"d":"5.00"}]
["M4.11","Tee-Piece  A106 Gr B CS SCH40 SWx A106 Gr B CS SCH40 SW     0.5\"","qty",{"v":6,"d":"6.00"}]
["M4.12","EN1092 PN40 RF Slip On Flange (#1) METRIC  DN20 RF Slip on Flange    DN20","qty",{"v":1,"d":"1.00"}]
[]
["M5","Hot Water Lines"]
["M5.1","SANS 460/2   22mm Copper Tubing","m",{"v":5.5,"d":"5.50"}]
["M5.2","SANS 460/2   15mm Copper tubing","m",{"v":55,"d":"55.00"}]
[]
["M6","Hot Water Fittings"]
["M6.1","End Caps   Cu Tube Connection     15mm","qty",{"v":2,"d":"2.00"}]
["M6.2","End Caps   Cu Tube Connection     22mm","qty",{"v":2,"d":"2.00"}]
["M6.3","Reducing Straight Coupler   2 x Cu Tube Connection     15mm x 22mm","qty",{"v":3,"d":"3.00"}]
["M6.4","Tee Piece   3 x Cu Tube Connection     22mm","qty",{"v":1,"d":"1.00"}]
["M6.5","Elbow   2 x Cu Tube Connection     22mm","qty",{"v":5,"d":"5.00"}]
["M6.6","Elbow   2 x Cu Tube Connection     15mm","qty",{"v":10,"d":"10.00"}]
["M6.7","Male Connector   Cu Threaded End x Cu Tube Connection     3/4\" BSPP x 22mm Tube","qty",{"v":2,"d":"2.00"}]
["M6.8","Male Connector   Cu Threaded End x Cu Tube Connection     3/4\" BSPP x 15mm Tube","qty",{"v":8,"d":"8.00"}]
["M6.9","Female Connector   Cu Tube Connection x Cu Threaded End     15mm Tube x 3/4\" BSP Thread","qty",{"v":2,"d":"2.00"}]
["M6.10","Male Connector   Cu Threaded End x Cu Tube Connection     3/4\" BSPP x 15mm Tube","qty",{"v":2,"d":"2.00"}]
["M6.11","Female Connector   Cu Tube Connection x Cu Threaded End     15mm Tube x 3/4\"BSP Thread","qty",{"v":2,"d":"2.00"}]
[]
["M7","Municipal Water Lines"]
["M7.1","SANS 460/2   15mm","m",{"v":66,"d":"66.00"}]
["M7.2","ASME 36.19 SS304 SCH 40   1/2\"","m","5.5m"]
["M7.3","ASME 36.19 SS316 SCH 40   1\"","m","5.5m"]
["M7.4","ASME 36.19 SS316 SCH 40   20mm","m","5.5m"]
[]
["M8","Municipal Water Fittings"]
["M8.1","End Caps   Cu Tube Connection     15mm","qty",{"v":5,"d":"5.00"}]
["M8.2","Tee Piece   3 x Cu Tube Connection     15mm","qty",{"v":10,"d":"10.00"}]
["M8.3","Elbow   2 x Cu Tube Connection     15mm","qty",{"v":15,"d":"15.00"}]
["M8.4","Male Connector   Cu Threaded End x Cu Tube Connection     3/4 BSPP male x 15mm Tube","qty",{"v":26,"d":"26.00"}]
["M8.5"," Female Connector   Cu Tube Connection x Cu Threaded End     15mm Tube x 1/2\" BSPF Thread","qty",{"v":1,"d":"1.00"}]
["M8.6","Male connector   6mm x 1/2\" BSP  Male Pushin Fittings     6mm x 1/2\" BSP  Male Pushin Fittings","qty",{"v":1,"d":"1.00"}]
["M8.7"," Female Connector   Cu Tube Connection x Cu Threaded End     15mm Tube x 1/2\" BSPF Thread","qty",{"v":1,"d":"1.00"}]
["M8.8","Male connector   6mm x 1/2\" BSP  Male Pushin Fittings     6mm x 1/2\" BSP  Male Pushin Fittings","qty",{"v":1,"d":"1.00"}]
["M8.9","Male Connector   Cu Tube Connection x Cu Threaded End     15mm Tube x 25mm BSP Thread","qty",{"v":1,"d":"1.00"}]
["M8.10","EN1092 SS PN40 Blind (#05) Flange   DN25 SS316L Flange     DN25","qty",{"v":1,"d":"1.00"}]
["M8.11","Male Connector   15MM x 3/4 Male connector     To Connect for female threaded flange","qty",{"v":1,"d":"1.00"}]
["M8.12","EN1092 SS PN40 Weldneck (#11) Flange   DN25 (1inch) SS 316L Flange     DN25","qty",{"v":1,"d":"1.00"}]
["M8.13","Male Connector   SS 316L Pipe x SS 316L Threaded End     1\" SS Tube x 1\" NPT Thread","qty",{"v":1,"d":"1.00"}]
["M8.14","Male Connector   Cu Tube Connection x Cu Threaded End     15mm Tube x 15mm BSP Thread","qty",{"v":1,"d":"1.00"}]
["M8.15","EN1092 SS PN25 Blind (#05) Flange (IMPERIAL)   1\" SS304 Flange     1/2\"","qty",{"v":1,"d":"1.00"}]
["M8.16","EN1092 SS PN25 Weldneck (#11) Flange IMPERIAL   1\" SS304 Flange     1/2\"","qty",{"v":1,"d":"1.00"}]
["M8.17","Female Connector   SS306 SCH40 Pipe Connection x Threaded End     1/2\" Pipe Connection x 1/2\" BSP Thread ","qty",{"v":1,"d":"1.00"}]
["M8.18","Tee Piece   SS316L Pipe connection x SS316L Pipe connection     20mm SS Pipe x 20mm SS Pipe","qty",{"v":1,"d":"1.00"}]
["M8.19","Elbow   SS316L Pipe connection x SS316L Pipe connection     20mm SS Pipe x 20mm SS Pipe","qty",{"v":6,"d":"6.00"}]
["M8.20","Male Connector   Cu Tube Connection x Cu Threaded End     15mm Tube x 20mm BSP Thread","qty",{"v":1,"d":"1.00"}]
["M8.21","EN1092 SS PN40 Blind (#05) Flange METRIC   DN20 SS316L Flange     DN20","qty",{"v":1,"d":"1.00"}]
["M8.22","EN1092 SS PN40 Weldneck (#11) Flange METRIC   DN20 SS 316L Flange     DN20","qty",{"v":3,"d":"3.00"}]
["M8.23","Reducing Female Coupler   Brass Threaded End x Cu Tube Connection     3/4\" BSP Thread x 15mm Cu Tube","qty",{"v":1,"d":"1.00"}]
[]
["M9 ","Compressed Air Lines"]
["M9.1","Medical Cu Tube   1/2\" Medical Grade Copper Tubing     1/2\"","m",{"v":38.5,"d":"38.50"}]
["M9.2"]
["M9.3","Compressed Air Fittings"]
["M9.4","Male Connector   12/\" tube x 1/2\" NPT     1/2\"","qty",{"v":2,"d":"2.00"}]
["M9.5","Plug   1/2\" NPT  Plug     1/2\"","qty",{"v":2,"d":"2.00"}]
["M9.6","Tee Piece   3 x Cu Tube Connection     1/2\"","qty",{"v":7,"d":"7.00"}]
["M9.7","Elbow   2 x Cu Tube Connection     1/2\"","qty",{"v":10,"d":"10.00"}]
["M9.8","Male Connector   Cu Threaded End x Cu Tube Connection     1/2\" NPT x 1/2\" Tube","qty",{"v":10,"d":"10.00"}]
["M9.9","Female Connector   Cu Threaded End x Cu Tube Connection     3/8\" NPT x 1/2\" Tube","qty",{"v":2,"d":"2.00"}]
["M9.10","Reducing Union   Threaded End x Flex Hose Nipple     1/2\" Tube x 3/8\" Tube","qty",{"v":2,"d":"2.00"}]
["M9.11","Female Connector   Cu Threaded End x Cu Tube Connection     1/4\" NPT x 1/2\" Tube","qty",{"v":1,"d":"1.00"}]
["M9.12","Male Quickfit Nipple   Threaded End x Flex Hose Nipple     1/2\" Tube x 3/8\" Tube","qty",{"v":1,"d":"1.00"}]
["M9.13","Straight Coupler   Medical copper Tube x SS316 Tube     1/2\" Tube x 3/8\" Tube","qty",{"v":1,"d":"1.00"}]
["M9.14","Male Connector   SS Threaded End x SS316 Tube     3/8\" BSPP x 3/8\" Tube","qty",{"v":1,"d":"1.00"}]
[]
["M10 ","Nitrogen Lines"]
["M10.1","Medical Cu Tube    3/8\"","m",30.48]
[]
["M11 ","Nitrogen Fittings"]
["M11.1","Male connector   3/8\" tube X 1/2\" npt male     3/8\"","qty",{"v":2,"d":"2.00"}]
["M11.2","Male Plug   1/2\"     1/2\"","qty",{"v":2,"d":"2.00"}]
["M11.3","Tee Piece   3 x Cu Tube Connection     3/8\"","qty",{"v":7,"d":"7.00"}]
["M11.4","Elbow   2 x Cu Tube Connection     3/8\"","qty",{"v":6,"d":"6.00"}]
["M11.5","Male Connector   Cu Threaded End x Cu Tube Connection     1/2\" NPT x 3/8\" Tube","qty",{"v":6,"d":"6.00"}]
["M11.6","Female Connector   Threaded End x Cu Tube Connection     1/4\" NPT x 3/8\" Tube","qty",{"v":1,"d":"1.00"}]
["M11.7","Straight Coupler   Medical copper Tube x SS316 Tube     3/8\" Tube x 3/8\" Tube","qty",{"v":1,"d":"1.00"}]
["M11.8","Male Connector   SS Threaded End x SS316 Tube     3/8\" BSPP x 3/8\" Tube","qty",{"v":1,"d":"1.00"}]
[]
[null,"Strainers"]
["M12.1","Spirax Sarco Y-Tipe Strainer (0.5\" Socket Weld Ends - ASME SCH 40 Pipe)","qty",{"v":2,"d":"2.00"}]
[]
[null,"Steam Line Air Vent"]
["M12.1","Thermostatic Air Vent (1.5\" Socket Weld Ends - ASME SCH 40 Pipe)\t\t\t\t\t","qty",{"v":1,"d":"1.00"}]
[]
[null,"Thermodynamic Steam Trap"]
["M14.1","Thermodynamic Steam Trap (0.5\" Socket Weld Ends - ASME SCH 40 Pipe)","qty",{"v":2,"d":"2.00"}]
[]
[]
[]
[null,"Sub-Total"]
[null,"VAT 15%"]
[]
[null,"TOTAL"]

{"sheet":"Civil & Structural BoQ","index":3,"n_rows":382,"n_cols":7,"rows_kept":382,"merged":[[0,1,0,6],[1,0,2,3]]}
[]
["CSIR CANOPY - Preliminary Bill of Quanities",{"$nulls":3},"Project",null,"CSIR CANOPY"]
[{"$nulls":4},"Doc Nr"]
["Date: 2021/10/19","Done By:",null,null,"Approved By",null,"Details"]
[null,"R. van Aswegen",{"$nulls":4},"Issued for Internal Review"]
[null,"G Stirling",null,null,"D. Roode",null,"issued for Client Review"]
[]
["BILL","DESCRIPTION","UNIT","QTY","RATE","AMOUNT (EXCL VAT)","AMOUNT (INCL VAT)"]
[]
[null,"SECTION NO. 1"]
[]
[null,"BILL NO. 1"]
[]
[null,"ALTERATIONS and DEMOLITIONS"]
[]
[null,"PREAMBLES"]
[]
[null,"For Preambles see \"Model Preambles For Trades\""]
[]
[null,"SUPPLEMENTARY PREAMBLES"]
[]
[null,"View site"]
[]
[null,"Before submitting his tender the tenderer shall visit the site and satisfy himself as to the nature and extent of the work to be done and the value of the materials salvageable from the alterations. No claim for any variations of the contract sum in respect of the nature and extent of the work or of inferior or damaged materials will be entertained.  "]
[]
[null,"Explosives"]
[]
[null,"No explosives whatsoever may be used for alteration purposes unless otherwise stated"]
[]
[null,"General"]
[]
[null,"The contractor shall carry out the whole of the works with as little mess and noise as possible and with a minimum of disturbance to tenants in the building and to adjoining premises and their tenants. He shall provide proper protection and provide, erect and remove whendirected, any temporary tarpaulins that may be necessary during the progress of the works, all to the satisfaction of the principle agent.  Doors, fanlights, windows, fittings, frames, linings, etc which are to remain the property of the employer shall be carefully taken out, temporarily stored, transported over a distance approximately 5km to store and handed over to employer.  Doors, fanlights, windows, fittings, frames, linings, etc which are to be re-used shall be thoroughly overhauled before re-fixing including taking off, easing and re-hanging, cramping up, re-wedging as required and making good cramps, dowels, etc, and oiling, adjusting and repairing ironmongery as necessary, replacing any glass damaged in removal or subsequently and stopping up all nail and screw holes with tinted plastic wood to match timber, unless otherwise described. Re-painting or re-varnishing is given separately.  Prices for taking out of doors, windows, etc shall include for removal of all beads, architraves, ironmongery, etc.  Prices for taking out and removing doors and frames shall include for removing door stops, cabin hooks, etc.  With regards to building up openings in existing walls, cement screeds and pavings, granolithic, tops of walls, etc, shall be levelled and prepared for raising of brickwork.  Making good of finishes shall include making good of the brick and concrete surfaces onto which the new finishes are applied, where necessary.  Thecontractor will be required to take all dimensions affecting the existing buildings on site and he will be held solely responsible for the accuracy of all such dimensions where used in the manufacture of new items (doors, windows, fittings, etc)."]
[]
[null,"ROOF SLAB"]
[]
[null,"ALTERATIONS and DEMOLITIONS"]
[]
[null,"REMOVAL OF EXISTING WORK"]
[]
[null,"Taking down and removing roofs, floors, panelling, ceilings, partitions, etc"]
[]
["C1.1","Existing waterproofing","m2",{"$f":"12.815*26.428","v":{"v":338.67482,"d":"338.67"}}]
[]
["C1.2","Removal of existing screed 100mm to 50mm (75mm average thickness) ","m2",{"$f":"12.815*26.428","v":{"v":338.67482,"d":"338.67"}}]
[]
[null,"DEMOLITIONS AND ALTERATIONS",{"$nulls":4},{"$f":"SUM(G40:G45)","v":0}]
[]
[null,"SECTION NO. 1"]
[]
[null,"BILL NO. 2"]
[]
[null,"ROOF COVERINGS ETC"]
[]
[null,"PREAMBLES"]
[]
[null,"For Preambles see \"Model Preambles For Trades\""]
[]
[null,"SUPPLEMENTARY PREAMBLES"]
[]
[null,"Guarantee"]
[]
[null,"The contractor is to state the period and level of guarantee of workmanship and materials for this project in his tender."]
[]
[null,"Availability of materials"]
[]
[null,"The contractor is to ascertain what materials and quantities are available for this project and state this in his tender"]
[]
[null,"Manpower"]
[]
[null,"The contractors is to state availability of his own resources for this project in his tender"]
[]
[null,"Straight cutting"]
[]
[null,"Descriptions of all roof coverings are deemed to include for all straight cutting"]
[]
["C2","PROFILED METAL SHEETING"]
[]
[null,"IBR Roof Sheeting as per engineer specification"]
[]
["C2.1","0.8mm IBR Roof Sheeting","m2",{"$f":"10.789*29.75","v":{"v":320.97275,"d":"320.97"}}]
[]
[null,"Extra over Roof sheeting for"]
[]
["C2.2","Clear roof sheeting as per engineers specification","m2",{"$f":"4*11","v":{"v":44,"d":"44.00"}}]
[]
[null,"IBR Side cladding as per engineer specification"]
[]
["C2.3","0.8mm IBR Side Cladding","m2",{"$f":"(30+30+11+11)*5","v":{"v":410,"d":"410.00"}}]
[]
[null,"METAL SHEET ACCESSORIES "]
[]
[null,"IBR Roof Sheeting as per engineer specification"]
[]
["C2.4","Ridge cap flashing 620mmg","m",{"v":30,"d":"30.00"}]
[]
["C2.5","Drip Flashing","m",{"$f":"30+30+11+11","v":{"v":82,"d":"82.00"}}]
[]
["C2.6","Whirley Birds","No",{"v":6,"d":"6.00"}]
[]
[null,"ROOF COVERINGS",{"$nulls":4},{"$f":"SUM(G80:G98)","v":0}]
[]
[null,"SECTION NO. 1"]
[]
[null,"BILL NO. 3"]
[]
[null,"STRUCTURAL STEELWORK"]
[]
[null,"SUPPLEMENTARY PREAMBLES"]
[]
[null,"Descriptions Descriptions of bolts shall be deemed to include nuts and washers Descriptions of expansion anchors and bolts and chemical anchors and bolts shall be deemed to include nuts, washers and mortices in brickwork or concrete"]
[]
[null,"Descriptions of L-shaped and U-shaped anchor bolts shall be deemed to include bending, threading, nuts and washers and embedding in concrete. Where anchor bolts are described as embedded in sides or soffits of concrete it shall be deemed to include holes through formwork."]
[]
["C3","STEEL ROOF CONSTRUCTION (PROVISIONAL)"]
[]
["C3.1","Steel Canopy Structure","t",14.97]
[]
["C3.2","Bolts & Plates","t",{"$f":"D116*0.1","v":{"v":1.497,"d":"1.50"}}]
[]
[null,"Chemical anchors"]
[]
["C3.3","Hilti HIT-RE 500 met HIT-V rod (16 mm)","No",{"v":96,"d":"96.00"}]
[]
[null,"STRUCTURAL STEELWORK",{"$nulls":4},{"$f":"SUM(G116:G122)","v":0}]
[]
[null,"SECTION NO. 1"]
[]
[null,"BILL NO. 4"]
[]
[null,"METALWORK"]
[]
[null,"PREAMBLES"]
[]
[null,"For preambles see \"Model Preambles for Trades\""]
[]
["C4","MILD STEEL BALUSTRADES, HANDRAILS ETC"]
[]
[null,"Painted mild steel collapsable balustrade (Colour TBC) including 42mm diameter mild steel top handrail and 4mm steel cables complete as per Architect specification"]
[]
["C4.1","1000mm high Straight Collapsable Handrails","m",{"v":6,"d":"6.00"}]
[]
[null,"STEEL SLIDING DOORS"]
[]
[null,"Double sliding doors with glossy non-drip enamel finish. Colour: Charcoal including ironmongery"]
[]
["C4.2","S1 - Double steel sliding door including top and bottom track","No",{"v":1,"d":"1.00"}]
[]
[null,"MILD STEEL DOORS"]
[]
[null,"Double door with glossy non-drip enamel finish. Colour: Charcoal including ironmongery"]
[]
["C4.3","D1 - 1640 x 2083mm high overall including frame fixed to structural steel","No",{"v":1,"d":"1.00"}]
[]
[null,{"$f":"B130","v":"METALWORK"},{"$nulls":4},{"$f":"SUM(G139:G153)","v":0}]
[]
[null,"SECTION NO. 1"]
[]
[null,"BILL NO. 5"]
[]
[null,"CEILINGS, PARTITIONS AND ACCESS FLOORING"]
[]
[null,"PREAMBLES"]
[]
[null,"For Preambles see \"Model Preambles For Trades\""]
[]
[null,"INSULATION"]
[]
["C5","Insulation to roofs"]
[]
["C5.1","Sisalation Roof insulation","m2",{"$f":"30*11","v":{"v":330,"d":"330.00"}}]
[]
[null,"PARTITIONS, ETC"]
[]
[null,"Solid drywall or similar approved partition systems"]
[]
[null,"107 - PARTITIONS"]
[]
[null,"Gyproc Saint-Gobain Rhinoboard Firestop drywall partitioning shall comprise steel studding formed of 2 x 102 x 35mm Donn UltraSteel  drywall top and bottom tracks with vertical studs at maximum 600mm centres, friction fitted or pop-riveted to the top and bottom tracks with similar additional vertical studs as necessary at abutments, ends, etc.with 102mm \"Isover cavitylite\" insulation inserted into cavity of partition and covered on both sides with 2 layers 15mm \"Rhinoboard Firestop\" per manufacturer, all screwed to studding with \"Drywall\" screws at maximum 220mm centres. Boards are to be butt jointed and finished with \"Rhino\" tape and \"Readymix D\" jointing compound.  The panels are to be completely skim coated on both sides (paint to both sides elsewhere measured), all according to manufacturer's specifications. Intersections and abutments are measured separately and descriptions shall be deemed to include any additional studs, corner beads, jointing compound, tape, etc."]
[]
["C5.2","Drywall partition 4,95m high with bottom track plugged and top track fixed to roof sheeting tees","m",{"v":29.155,"d":"29.16"}]
[]
["C5.3","Extra over for standard size partition door","No",{"v":2,"d":"2.00"}]
[]
[null,"CEILINGS, PARTITIONS AND ACCESS FLOORING",{"$nulls":4},{"$f":"SUM(G170:G183)","v":0}]
[]
[null,"SECTION NO. 1"]
[]
[null,"BILL NO. 6"]
[]
[null,"FLOOR COVERINGS, WALL LININGS, ETC"]
[]
[null,"PREAMBLES"]
[]
[null,"For Preambles see \"Model Preambles For Trades\""]
[]
[null,"Notes to Tenderers"]
[]
[null,"Moisture test must be done before any preparations starts (THIS MUST BE DONE TIMEOUSLY IN ORDER TO AVOID TIME LOSS OR ADDITIONAL COST)"]
[]
[null,"Full project pack to be issued to Client on completion with all guarantees and maintenance manuals (Supplied by Manufacturer and Supplier). "]
[]
[null,"POLISH, SEALERS, ETC"]
[]
[null,"Sweep, clean with detergent complying with SABS 825, rinse and apply three coats of water emulsion polish complying with SABS 1042, including buffing after application of each coat of polish"]
[]
["C6.1","On exposed slab where screed was removed","m2",{"$f":"D44","v":{"v":338.67482,"d":"338.67"}}]
[]
[null,"FLOOR COVERINGS"]
[]
[null,"6mm Polyurethane floor screed"]
[]
["C6.2","On floors ","m2",{"$f":"D206","v":{"v":338.67482,"d":"338.67"}}]
[]
["C6.3","10mm joints","m",{"$f":"30+(11*6)","v":{"v":96,"d":"96.00"}}]
[]
[null,"FLOOR COVERINGS, WALL LININGS, ETC",{"$nulls":4},{"$f":"SUM(G206:G214)","v":0}]
[]
[null,"SECTION NO. 1"]
[]
[null,"BILL NO. 7"]
[]
[null,"PLUMBING AND DRAINAGE "]
[]
[null,"PREAMBLES"]
[]
[null,"For Preambles see \"Model Preambles For Trades\""]
[]
[null,"SUPPLEMENTARY PREAMBLES"]
[]
[null,"uPVC pipes and fittings"]
[]
[null,"Sewer and drainage pipes and fittings shall be jointed and sealed with butyl rubber rings"]
[]
[null,"Soil, waste, vent pipes and fittings shall be solvent weld jointed"]
[]
[null,"uPVC pressure pipes and fittings"]
[]
[null,"Pipes for water supply shall be of the class stated"]
[]
[null,"Pipes of 40mm diameter and smaller shall be plain ended with solvent welded uPVC loose sockets and fittings"]
[]
[null,"Pipes of 50mm diameter and greater shall have sockets and spigots with push in type integral rubber ring joints.  Bends shall be uPVC and all other fittings shall be cast iron, all with similar push-in type joints"]
[]
[null,"Copper pipes"]
[]
[null,"Pipes shall be hard drawn and half-hard pipes of the class stated.  Class 0 (thin walled hard drawn) pipes shall not be bent.  Class 1 (thin walled half-hard), class 2 (half-hard) and class 3 (heavy walled half-hard) pipes shall only be bent with benders with inner and outer formers. Capillary solder fittings shall comply with ISO 2016.  Only compression fittings shall be used in walls or in ground"]
[]
[null,"Fixing of pipes"]
[]
[null,"Unless specifically otherwise stated, descriptions of pipes shall be deemed to include fixing to walls etc, casting in, building in or suspending not exceeding 1m below suspension level"]
[]
[null,"Reducing fittings"]
[]
[null,"Where fittings have reducing ends or branches they are described as \"reducing\".  In the case of pipes with diameters not exceeding 60mm only the largest end or branch size is given. Should the contractor wish to use other fittings and bushes or reducers he may do so on the understanding that no claim in this regard will be entertained.  In the case of pipes with diameters exceeding 60mm all sizes are given and no claim for extra bushes, reducers, etc will be entertained"]
[]
[null,"In the case of pipes with diameters exceeding  60mm all sizes are given  and  no  claim  for  extra  bushes,  reducers,  etc  will  be entertained"]
[]
[null,"Excavations"]
[]
[null,"No  claim  for  rock  excavation  will  be  entertained  unless  the contractor has timorously notified the Principal Agent thereof prior to backfilling"]
[]
[null,"Soft rock and \"hard rock\" shall be as defined in \"Earthworks\""]
[]
[null,"Laying, backfilling, bedding, etc of pipes"]
[]
[null,"Pipes  shall  be  laid  and  bedded  and  trenches  shall  be  carefully backfilled in accordance with manufacturers' instructions"]
[]
[null,"Where  no  manufactures'  instructions  exist  pipes  shall  be  laid  in accordance with clause 5.1 and 5.2 of each of the following: SABS 1200    L :   Medium-pressure pipelines                                                                    LD   :   Sewers                                                                                              LE   :   Stormwater drainage"]
[]
[null,"Pipe trenches etc shall be backfilled in accordance with clause 3.1 to 3.4.1, 5.1 to 5.3 and 7 of SABS 1200 LB : Bedding (Pipes)."]
[]
[null,"Unless otherwise described bedding of rigid pipes shall be class B bedding"]
[]
[null,"Flush pans"]
[]
[null,"Flush pans shall have straight or side outlets and \"P\" or \"S\" traps as necessary"]
[]
[null,"Stainless steelbasins, sinks, wash troughs, urinals, etc."]
[]
[null,"Units shall have standard aprons on all exposed edges and tiling keys against walls where applicable"]
[]
[null,"Waste unions"]
[]
[null,"Descriptions of waste unions shall be deemed to include rubber or vulcanite plugs and chains fixed to fittings"]
[]
[null,"RAINWATER DISPOSAL"]
[]
["C7","Seamless epoxy coated aluminium gutters and rainwater downpipes fixed to GMS rafter and face of inner wall and supported on steel roof structure to fall"]
[]
["C7.1","200 x 150mm Gutter","m",{"v":60,"d":"60.00"}]
[]
["C7.2","100 x 3mm RWDP","m",{"$f":"5*6","v":{"v":30,"d":"30.00"}}]
[]
["C7.3","Extra over for bends","No",{"$f":"6*2","v":{"v":12,"d":"12.00"}}]
[]
["C7.4","Extra over for shoe","No",{"$f":"6","v":{"v":6,"d":"6.00"}}]
[]
[null,"SANITARY FITTINGS"]
[]
[null,"Sanitary fittings"]
[]
[null,"Comprises fittings and units complete with, service pipes, stop cocks and traps and those combined with cupboards or worktops excluding taps and mixers."]
[]
["C7.5","Double Bowl sink","No",{"v":1,"d":"1.00"}]
[]
[null,"Sanitary fittings sundries "]
[]
[null,"Comprises soap dishes, toilet paper holders, mirrors, towel rails, medicine cabinets, etc."]
[]
["C7.6","Soap dish","No",{"v":1,"d":"1.00"}]
[]
[null,"SANITARY PLUMBING"]
[]
[null,"Sanitary plumbing"]
[]
[null,"Comprises anti-siphonage, waste, soil and vent stacks, paint on pipes, a proportion of holes and cutting to tiling, etc."]
[]
["C7.7","Sanitary plumbing","No",{"v":1,"d":"1.00"}]
[]
[null,"Cold water supplies"]
[]
[null,"Comprises all cold water services including paint on pipes, a proportion of holes and cutting to tiling, wheel valves, etc."]
[]
["C7.8","Cold water supplies","No",{"v":1,"d":"1.00"}]
[]
[null,"Hot water supplies"]
[]
[null,"Comprises piping, lagging, paint on pipes, a proportion of holes and cutting to tiling, wheel valves, etc."]
[]
["C7.9","Hot water supplies","No",{"v":1,"d":"1.00"}]
[]
[null,"ELECTRIC WATER HEATERS"]
[]
[null,"Manufactured by \"Kwikot\""]
[]
["C7.10","100 Litre roof mounted solar water heater","No",{"v":1,"d":"1.00"}]
[]
[null,"FIRE APPLIANCES, ETC"]
[]
["C7.11","4.5kg Dry chemical powder fire extinguisher including backing board","No",{"v":4,"d":"4.00"}]
[]
[null,"Fire hose reel including all necessary pipework, fittings, bends, tees, reducers and sundries complete in accordance with SANS standards"]
[]
["C7.12","Fire hose reel with 30m rubber hose, chromium plated stopcock, shut-off nozzle, wall bracket, nipples, flanges, etc to fix to water supply pipe. Complete.","No",{"v":2,"d":"2.00"}]
[]
[null,"uPVC Class 16 pipes"]
[]
["C7.13","50mm Fire water supply pipes laid in earth or in earth filling under surface beds, including excavations not exceeding 1m deep","m",{"v":30,"d":"30.00"}]
[]
[null,"Extra over uPVC Class 16 pipes for compression fittings"]
[]
["C7.14","50mm Bend","No",{"v":6,"d":"6.00"}]
[]
[null,"TESTING"]
[]
["C7.15","Testing water supply system to fire appliances","Item",{"v":1,"d":"1.00"}]
[]
[null,"PLUMBING AND DRAINAGE",{"$nulls":4},{"$f":"SUM(G290:G356)","v":0}]
[]
[null,"SECTION NO. 1"]
[]
[null,"BILL NO. 8"]
[]
[null,"PAINTWORK"]
[]
[null,"PREAMBLES"]
[]
[null,"For Preambles see \"Model Preambles For Trades\""]
[]
[null,"PAINTWORK, ETC TO NEW WORK ON"]
[]
[null,"PLASTER BOARD SURFACES"]
[]
[null,"One coat alkali resistant plaster primer and two coats \"Dulux Trade\" PVA acrylic emulsion paint on "]
[]
["C8.1","Drywall","m2",{"$f":"(D180*4.95)*2","v":{"v":288.6345,"d":"288.63"}}]
[]
[null,"PAINTWORK",{"$nulls":4},{"$f":"SUM(G375:G377)","v":0}]
[null,"Sub-Total"]
[null,"VAT 15%"]
[]
[null,"TOTAL",{"$nulls":4},{"$f":"G46+G100+G124+G154+G184+G358+G378+G216","v":0}]